bitfinex/quotes_BTCUSD_20260215
["timestamp","ask_amount","ask_price","bid_price","bid_amount"]
[1771148626373,0.07132232,70540.0,70535.0,0.07088659]
[1771148626695,0.0952567,70539.0,70534.0,0.07088609]
[1771148627621,0.07088396,70538.0,70533.0,0.07088706]
[1771148627839,0.07088284,70539.0,70534.0,0.07088722]
[1771148628612,0.070884,70538.0,70533.0,0.07088706]
[1771148629888,0.00044,70540.0,70534.0,0.0002]
[1771148629889,0.07088679,70535.0,70534.0,0.0002]
[1771148630273,0.07088649,70536.0,70534.0,0.0002]
[1771148630771,0.0708844,70538.0,70534.0,0.0002]
[1771148632117,0.07088509,70537.0,70534.0,0.0002]
[1771148632273,0.07088583,70536.0,70534.0,0.0002]
[1771148632593,0.07088509,70537.0,70534.0,0.0002]
[1771148632769,0.07088548,70538.0,70534.0,0.0002]
[1771148633149,0.07088479,70537.0,70534.0,0.0002]
[1771148633538,0.07088613,70536.0,70534.0,0.0002]
[1771148634374,0.00044,70540.0,70534.0,0.0002]
[1771148634595,0.0708833,70539.0,70534.0,0.0710875]
[1771148635411,0.07088404,70538.0,70534.0,0.0002]
[1771148637412,0.070884,70538.0,70534.0,0.0002]
[1771148639858,0.07088501,70537.0,70534.0,0.0002]
[1771148640041,0.07088679,70535.0,70529.0,0.07089105]
[1771148640361,0.07088679,70535.0,70530.0,0.07089133]
[1771148640695,0.07088789,70534.0,70529.0,0.07089105]
[1771148640878,0.07088679,70535.0,70530.0,0.07089158]
[1771148641097,0.07088713,70535.0,70530.0,0.07089158]
[1771148641644,0.07088739,70536.0,70531.0,0.07089062]
[1771148642176,0.07088667,70537.0,70532.0,0.0708896]
[1771148642295,0.07088545,70538.0,70533.0,0.07088874]
[1771148642496,0.28396747,70540.0,70527.0,0.60343699]
[1771148642497,0.07132232,70540.0,70529.0,0.02401751]
[1771148642719,0.00044,70540.0,70535.0,0.07088621]
[1771148642918,0.00044,70540.0,70531.0,0.02401751]
[1771148643121,0.00044,70540.0,70534.0,0.07088695]
[1771148643327,0.00044,70540.0,70531.0,0.02401751]
[1771148643540,0.07088367,70539.0,70534.0,0.07088775]
[1771148643736,0.07132357,70540.0,70534.0,0.07088775]
[1771148644075,0.07088277,70539.0,70534.0,0.07088775]
[1771148644212,0.0713224,70540.0,70535.0,0.07088658]
[1771148644413,0.00044,70540.0,70535.0,0.07088658]
[1771148644659,0.00044,70540.0,70536.0,0.07088568]
[1771148645237,0.00044,70540.0,70539.0,0.07088277]
[1771148646043,0.07087638,70546.0,70539.0,0.07088277]
[1771148646044,0.07127319,70549.0,70543.0,0.0708779]
[1771148646299,0.07141212,70548.0,70543.0,0.0708779]
[1771148646473,0.07087523,70547.0,70542.0,0.07087791]
[1771148647114,0.07141212,70548.0,70543.0,0.07087871]
[1771148647276,0.07141212,70548.0,70543.0,0.09489622]
[1771148647479,0.07127446,70549.0,70548.0,0.07087373]
[1771148647480,0.0004,70549.0,70548.0,0.07087373]
[1771148647678,0.0004,70549.0,70546.0,0.07087507]
[1771148647880,0.0004,70549.0,70540.0,0.28352365]
[1771148648081,0.0004,70549.0,70545.0,0.07087669]
[1771148648577,0.00052275,70549.0,70545.0,0.07087669]
[1771148651827,0.00052275,70549.0,70547.0,0.07087451]
[1771148652859,0.00052275,70549.0,70546.0,0.09489303]
[1771148653056,0.00052275,70549.0,70547.0,0.07087442]
[1771148653455,0.00052275,70549.0,70546.0,0.09489303]
[1771148654865,0.00052275,70549.0,70546.0,0.02401751]
[1771148655700,0.00052275,70549.0,70546.0,0.09489295]
[1771148656058,0.00052275,70549.0,70545.0,0.070875]
[1771148662390,0.00052275,70549.0,70546.0,0.07087571]
[1771148665059,0.00052275,70549.0,70547.0,0.07087431]
[1771148665283,0.00052275,70549.0,70548.0,0.07087373]
[1771148665652,1e-08,70549.0,70548.0,0.0954096]
[1771148666061,1e-08,70549.0,70547.0,0.07087431]
[1771148666277,1e-08,70549.0,70543.0,0.0002]
[1771148666502,1e-08,70549.0,70545.0,0.07107608]
[1771148666663,0.00040001,70549.0,70545.0,0.07107645]
[1771148667312,0.00040001,70549.0,70546.0,0.0708754]
[1771148667468,0.00040001,70549.0,70547.0,0.07087382]
[1771148667669,0.00040001,70549.0,70546.0,0.07087563]
[1771148668638,0.00040001,70549.0,70545.0,0.07107502]
[1771148668877,0.00040001,70549.0,70546.0,0.07087549]
[1771148669639,0.00040001,70549.0,70545.0,0.07107502]
[1771148671079,0.00040001,70549.0,70547.0,0.07087433]
[1771148671943,0.07087775,70544.0,70543.0,1e-08]
[1771148672102,0.09526997,70543.0,70537.0,0.07108419]
[1771148672509,0.07087909,70543.0,70537.0,0.07108419]
[1771148672910,0.07087979,70542.0,70537.0,0.07108419]
[1771148673135,0.07087909,70543.0,70538.0,0.07088351]
[1771148675163,0.07087939,70544.0,70539.0,0.07088272]
[1771148675366,0.09527027,70544.0,70539.0,0.07088272]
[1771148677422,0.07087904,70543.0,70538.0,0.07088351]
[1771148677615,0.09527027,70544.0,70539.0,0.07088264]
[1771148678320,0.09527027,70544.0,70539.0,0.07084264]
[1771148679856,0.02439088,70544.0,70539.0,0.07084264]
[1771148680098,0.07096335,70545.0,70539.0,0.07084264]
[1771148680327,0.07087779,70544.0,70539.0,0.07084264]
[1771148681921,0.07087424,70548.0,70543.0,0.07087844]
[1771148682069,4e-05,70550.0,70549.0,0.07087272]
[1771148682247,4e-05,70550.0,70544.0,0.02429638]
[1771148682464,0.07087575,70546.0,70544.0,0.00012275]
[1771148682668,0.07087522,70547.0,70544.0,0.00012275]
[1771148682901,0.07087458,70548.0,70544.0,0.00012275]
[1771148684430,0.07127424,70549.0,70544.0,0.07100023]
[1771148688209,0.07127424,70549.0,70544.0,0.00012275]
[1771148688362,0.07087664,70546.0,70540.0,0.07088125]
[1771148688570,0.02264623,70545.0,70537.0,0.0002]
[1771148688799,0.02264623,70545.0,70541.0,0.07088068]
[1771148689169,0.09352316,70545.0,70540.0,0.07088168]
[1771148689409,0.09360816,70545.0,70540.0,0.07088168]
[1771148689588,8.5e-05,70545.0,70540.0,0.07088168]
[1771148689931,0.07096183,70545.0,70540.0,0.07088168]
[1771148690304,8.5e-05,70545.0,70542.0,0.07087883]
[1771148690509,8.5e-05,70545.0,70542.0,0.07087954]
[1771148690709,8.5e-05,70545.0,70537.0,0.0002]
[1771148690885,0.00012976,70546.0,70540.0,0.07088104]
[1771148691092,0.07100611,70546.0,70541.0,0.07088071]
[1771148693272,0.07100611,70546.0,70541.0,0.07084071]
[1771148693920,0.07087732,70545.0,70540.0,0.07088163]
[1771148694134,0.07087732,70545.0,70540.0,0.07088115]
[1771148694349,0.07087732,70545.0,70539.0,0.071081]
[1771148694994,0.07087801,70544.0,70539.0,0.0002]
[1771148695219,0.00012976,70546.0,70534.0,1e-08]
[1771148695220,0.07088679,70535.0,70534.0,1e-08]
[1771148695745,0.07088622,70536.0,70534.0,1e-08]
[1771148696292,0.07088679,70535.0,70534.0,1e-08]
[1771148696639,0.07088622,70536.0,70534.0,1e-08]
[1771148697413,0.07088679,70535.0,70534.0,1e-08]
[1771148698850,0.07088622,70536.0,70534.0,1e-08]
[1771148699493,0.07088647,70537.0,70534.0,1e-08]
[1771148700205,0.07088586,70536.0,70534.0,1e-08]
[1771148700386,0.07088679,70535.0,70534.0,1e-08]
[1771148700634,0.1234438,70542.0,70534.0,1e-08]
[1771148700635,0.0004,70549.0,70537.0,0.07088419]
[1771148700834,0.0004,70549.0,70534.0,1e-08]
[1771148700835,0.28363368,70546.0,70538.0,0.07088287]
[1771148701010,0.28363368,70546.0,70537.0,0.07088311]
[1771148701011,0.07088025,70542.0,70537.0,0.07088311]
[1771148701255,0.07088025,70542.0,70538.0,0.02406991]
[1771148701459,0.07088025,70542.0,70534.0,1e-08]
[1771148701460,0.07088679,70535.0,70534.0,1e-08]
[1771148701658,0.00012976,70546.0,70530.0,1e-08]
[1771148701659,0.09353603,70532.0,70530.0,1e-08]
[1771148701808,0.07089081,70531.0,70530.0,1e-08]
[1771148702013,0.09353603,70532.0,70530.0,1e-08]
[1771148702014,0.0708898,70532.0,70530.0,1e-08]
[1771148702210,0.0708898,70532.0,70528.0,0.0002]
[1771148702411,0.07089034,70533.0,70528.0,0.0002]
[1771148704208,0.07089034,70533.0,70528.0,0.07109382]
[1771148707669,0.07089034,70533.0,70529.0,5.213e-05]
[1771148708385,4e-05,70530.0,70529.0,1.213e-05]
[1771148708628,4e-05,70530.0,70529.0,0.07090495]
[1771148710120,4e-05,70530.0,70529.0,1.213e-05]
[1771148710725,4e-05,70530.0,70529.0,0.07090495]
[1771148712211,4e-05,70530.0,70529.0,0.0707571]
[1771148713122,4e-05,70550.0,70528.0,0.02426991]
[1771148713123,0.3396,70547.0,70528.0,0.02426991]
[1771148713340,0.07088076,70542.0,70536.0,0.07088499]
[1771148713549,0.07088076,70542.0,70537.0,0.07088465]
[1771148714215,0.07088076,70542.0,70536.0,0.07088499]
[1771148714423,0.070881,70541.0,70536.0,0.07088499]
[1771148714833,0.070881,70541.0,70535.0,0.0167797]
[1771148715393,0.070881,70541.0,70536.0,0.0708853]
[1771148722005,0.071281,70541.0,70536.0,0.0708853]
[1771148722249,0.0004,70541.0,70537.0,0.07088429]
[1771148723388,4e-05,70540.0,70537.0,0.07088429]
[1771148723588,4e-05,70540.0,70539.0,0.07088277]
[1771148724078,0.0004,70544.0,70541.0,0.07088043]
[1771148724774,0.0004,70544.0,70540.0,0.07088156]
[1771148725380,0.07140602,70546.0,70535.0,0.00141776]
[1771148725381,0.00052976,70546.0,70536.0,0.02278116]
[1771148725574,0.07140558,70546.0,70536.0,0.02278116]
[1771148725813,0.07140558,70546.0,70536.0,0.62618908]
[1771148726037,0.07140558,70546.0,70541.0,0.07087995]
[1771148726236,0.00052976,70546.0,70541.0,0.07087995]
[1771148726447,0.07140558,70546.0,70541.0,0.07087995]
[1771148726643,0.07087675,70545.0,70536.0,0.02278116]
[1771148726842,0.07087792,70544.0,70539.0,0.07088184]
[1771148727048,0.07088029,70542.0,70536.0,0.07088499]
[1771148727454,0.07088112,70541.0,70536.0,0.07088499]
[1771148727654,0.20088046,70543.0,70538.0,0.07088371]
[1771148727826,0.13,70543.0,70542.0,0.07087975]
[1771148728050,0.00052976,70546.0,70542.0,0.02364381]
[1771148728290,0.00052976,70546.0,70537.0,0.28353892]
[1771148728700,0.07087727,70545.0,70540.0,0.07088174]
[1771148729398,0.07087727,70545.0,70540.0,0.07088144]
[1771148729634,0.21794196,70545.0,70540.0,0.07088144]
[1771148730536,0.21794196,70545.0,70539.0,0.07088275]
[1771148730785,0.07087727,70545.0,70540.0,0.07088141]
[1771148730983,0.07140717,70546.0,70541.0,0.07088062]
[1771148731307,0.00052976,70546.0,70542.0,0.07087919]
[1771148731502,0.00052976,70546.0,70544.0,0.07087746]
[1771148731706,0.000455,70549.0,70536.0,0.72663841]
[1771148731707,1e-08,70549.0,70548.0,0.07087373]
[1771148731906,4.907e-05,70549.0,70548.0,0.07087373]
[1771148732554,4.906e-05,70549.0,70548.0,0.07087373]
[1771148732753,4.906e-05,70549.0,70548.0,0.09451754]
[1771148733132,0.0005279,70552.0,70551.0,0.07087071]
[1771148733340,0.0005279,70552.0,70539.0,0.60340792]
[1771148733546,0.07087111,70551.0,70542.0,0.07087975]
[1771148733913,0.07087111,70551.0,70546.0,0.0708754]
[1771148734334,0.07139923,70552.0,70540.0,8.906e-05]
[1771148734335,0.1221769,70550.0,70540.0,8.906e-05]
[1771148734551,0.02488779,70545.0,70541.0,0.07088037]
[1771148734744,0.07087612,70546.0,70541.0,0.07088037]
[1771148734946,9.001e-05,70550.0,70540.0,8.906e-05]
[1771148735087,9.001e-05,70550.0,70540.0,0.60349698]
[1771148735287,0.0708729,70549.0,70544.0,0.07087702]
[1771148737738,0.07087394,70548.0,70543.0,0.07087822]
[1771148738430,9.001e-05,70550.0,70540.0,8.906e-05]
[1771148738557,0.07087846,70544.0,70540.0,8.906e-05]
[1771148739329,0.07087846,70544.0,70533.0,0.36324381]
[1771148739330,0.07088259,70540.0,70534.0,0.07088742]
[1771148739470,7.968e-05,70540.0,70529.0,0.0002]
[1771148739808,0.67432797,70540.0,70534.0,0.07088685]
[1771148740020,0.07096183,70540.0,70534.0,0.07088685]
[1771148740157,0.09584962,70540.0,70535.0,0.07088646]
[1771148740357,0.21802652,70540.0,70535.0,0.07088646]
[1771148740558,0.07088318,70539.0,70533.0,0.07088866]
[1771148740800,0.21802785,70540.0,70534.0,0.07088778]
[1771148741199,0.07088305,70539.0,70534.0,0.07088778]
[1771148741398,0.21802785,70540.0,70535.0,0.07088674]
[1771148742427,0.09585095,70540.0,70535.0,0.07088658]
[1771148742924,0.22160467,70540.0,70535.0,0.07088658]
[1771148743703,0.22160467,70540.0,70534.0,0.0002]
[1771148743704,0.07088422,70538.0,70534.0,0.0002]
[1771148743903,0.07088427,70538.0,70534.0,0.0002]
[1771148744105,0.07088313,70539.0,70534.0,0.0710875]
[1771148744429,0.09584957,70540.0,70535.0,0.07088639]
[1771148744654,7.968e-05,70540.0,70535.0,0.28354366]
[1771148744822,7.968e-05,70540.0,70537.0,0.07088394]
[1771148745956,0.07096197,70540.0,70535.0,0.07088652]
[1771148746160,7.968e-05,70540.0,70534.0,0.0002]
[1771148746316,0.07088679,70535.0,70534.0,0.0002]
[1771148746521,0.07088622,70536.0,70534.0,0.0002]
[1771148747596,0.11648288,70539.0,70528.0,0.0002]
[1771148747747,0.07089181,70530.0,70526.0,0.0002]
[1771148748323,0.07089257,70531.0,70526.0,0.07109563]
[1771148748539,0.0231068,70533.0,70528.0,0.28357524]
[1771148748736,0.0231068,70535.0,70531.0,0.07089075]
[1771148749610,0.0231068,70535.0,70530.0,0.07089177]
[1771148750933,0.09399386,70535.0,70530.0,0.07089177]
[1771148751639,0.07088706,70535.0,70530.0,0.07089177]
[1771148752321,0.07088646,70536.0,70531.0,0.07089064]
[1771148754435,0.07088684,70535.0,70530.0,0.07089177]
[1771148755381,0.11648288,70538.0,70527.0,0.0003279]
[1771148755576,0.07088918,70533.0,70528.0,0.07089336]
[1771148756276,0.07088843,70535.0,70529.0,0.07089258]
[1771148756487,0.07088843,70535.0,70530.0,0.07089121]
[1771148757344,0.07088816,70534.0,70528.0,0.07089217]
[1771148757585,0.07088918,70533.0,70528.0,0.07089217]
[1771148758030,0.07088918,70533.0,70529.0,0.07089275]
[1771148758233,0.07089131,70531.0,70527.0,0.0003279]
[1771148758364,0.07089131,70531.0,70527.0,0.07122266]
[1771148758564,0.07089131,70531.0,70527.0,0.0003279]
[1771148759177,0.0708902,70532.0,70528.0,0.0002]
[1771148759382,0.07088617,70536.0,70530.0,0.07089181]
[1771148759579,0.07088736,70535.0,70530.0,0.07089181]
[1771148760388,0.07088617,70536.0,70531.0,0.07089066]
[1771148760517,0.07096226,70540.0,70528.0,0.02384954]
[1771148760726,7.968e-05,70540.0,70531.0,0.02364954]
[1771148760916,7.968e-05,70540.0,70533.0,0.28355377]
[1771148761142,7.968e-05,70540.0,70538.0,0.07088331]
[1771148761565,7.968e-05,70540.0,70537.0,0.07088446]
[1771148761917,7.968e-05,70540.0,70538.0,0.07088373]
[1771148762342,7.968e-05,70540.0,70539.0,0.07088277]
[1771148763348,0.07087628,70547.0,70542.0,0.07087972]
[1771148763512,0.07087593,70546.0,70541.0,0.07088015]
[1771148763935,0.07091231,70550.0,70544.0,0.07087709]
[1771148764136,0.07091231,70550.0,70536.0,0.72093355]
[1771148764137,0.07087509,70547.0,70542.0,0.09452869]
[1771148764368,0.28352895,70550.0,70542.0,0.09465845]
[1771148764369,0.07087381,70548.0,70542.0,0.09465845]
[1771148764538,0.07087381,70548.0,70542.0,0.07100891]
[1771148765081,0.07087476,70547.0,70542.0,0.07100891]
[1771148765495,0.07087815,70544.0,70542.0,0.00012976]
[1771148765662,0.20087815,70544.0,70542.0,0.00012976]
[1771148766682,0.07087875,70543.0,70542.0,0.00012976]
[1771148768050,0.07088465,70538.0,70528.0,0.091]
[1771148768276,0.07088465,70538.0,70533.0,0.07088877]
[1771148768767,0.07088513,70537.0,70532.0,0.07088821]
[1771148768952,0.07088302,70539.0,70534.0,0.07088741]
[1771148769375,4e-05,70550.0,70541.0,0.07088006]
[1771148769577,0.12489292,70550.0,70541.0,0.07088006]
[1771148769714,0.07088014,70542.0,70537.0,0.02364954]
[1771148769920,0.12485292,70541.0,70536.0,0.07088569]
[1771148770674,0.12485292,70541.0,70537.0,0.07088476]
[1771148770877,0.12485292,70541.0,70536.0,0.07088569]
[1771148771863,0.0708808,70541.0,70536.0,0.07088569]
[1771148772035,0.12485292,70540.0,70536.0,0.07088569]
[1771148773209,0.07096397,70548.0,70543.0,0.07087813]
[1771148773408,9.001e-05,70548.0,70544.0,0.07087764]
[1771148773608,9.001e-05,70548.0,70543.0,0.07087712]
[1771148773809,0.07096405,70548.0,70542.0,0.07087814]
[1771148774109,0.07096405,70548.0,70543.0,0.07087838]
[1771148775408,9.001e-05,70548.0,70543.0,0.07087838]
[1771148776048,0.07096389,70548.0,70543.0,0.07087838]
[1771148777046,9.001e-05,70548.0,70544.0,0.07087771]
[1771148777265,9.001e-05,70548.0,70545.0,0.07087674]
[1771148777449,9.001e-05,70548.0,70545.0,0.09425955]
[1771148777796,1e-08,70546.0,70545.0,0.09425955]
[1771148781989,1e-08,70546.0,70545.0,0.07087674]
[1771148783947,1e-08,70546.0,70542.0,0.0002]
[1771148784174,1e-08,70546.0,70544.0,0.07087772]
[1771148784673,0.12485293,70546.0,70544.0,0.07087772]
[1771148785854,0.12485293,70546.0,70545.0,0.07087674]
[1771148786740,1e-08,70546.0,70545.0,0.07087674]
[1771148794003,1e-08,70549.0,70548.0,0.07087373]
[1771148796720,1e-08,70549.0,70546.0,0.07087373]
[1771148796918,0.12485293,70549.0,70548.0,0.07087373]
[1771148797164,1e-08,70549.0,70548.0,0.07087373]
[1771148799720,0.0005279,70552.0,70551.0,0.07087071]
[1771148799921,0.11784164,70552.0,70551.0,0.07087071]
[1771148800289,0.0005279,70552.0,70551.0,0.07087071]
[1771148800943,0.0005279,70552.0,70551.0,0.05118273]
[1771148801318,0.11784164,70552.0,70550.0,0.07087126]
[1771148801564,0.11784164,70552.0,70550.0,0.054484]
[1771148803067,0.0005279,70552.0,70550.0,0.054484]
[1771148804692,0.12163758,70552.0,70550.0,0.054484]
[1771148808073,0.0005279,70552.0,70551.0,0.07087071]
[1771148808476,0.0005279,70552.0,70550.0,0.054484]
[1771148809267,0.12163758,70552.0,70550.0,0.054484]
[1771148813218,0.12163758,70552.0,70549.0,0.0708711]
[1771148813645,0.12163758,70552.0,70550.0,0.07087157]
[1771148813859,0.0005279,70552.0,70550.0,0.07087157]
[1771148815024,0.0005279,70552.0,70550.0,0.07087145]
[1771148815208,0.12163758,70552.0,70549.0,0.04306924]
[1771148815835,0.12163758,70552.0,70548.0,0.07087197]
[1771148816314,0.0005279,70552.0,70545.0,0.0002]
[1771148816537,0.07087227,70550.0,70545.0,0.0002]
[1771148816742,0.19198201,70551.0,70545.0,0.0710764]
[1771148817021,0.07087193,70550.0,70545.0,0.0710764]
[1771148819400,0.07087071,70551.0,70545.0,0.0002]
[1771148819674,0.14440633,70550.0,70545.0,0.0002]
[1771148820019,0.07087512,70547.0,70545.0,0.0002]
[1771148820441,0.1919837,70548.0,70545.0,0.0002]
[1771148822930,0.07087499,70547.0,70545.0,0.0002]
[1771148823144,0.07088377,70538.0,70532.0,0.07108974]
[1771148823374,0.19199345,70538.0,70534.0,0.00024325]
[1771148823731,0.0708866,70536.0,70534.0,0.00024325]
[1771148823941,0.07088735,70535.0,70530.0,0.0002]
[1771148824157,0.04965404,70533.0,70530.0,0.00027968]
[1771148824344,0.21529368,70535.0,70530.0,0.07117111]
[1771148825344,0.19199703,70535.0,70530.0,0.07117111]
[1771148827541,0.12110968,70535.0,70531.0,0.07089049]
[1771148828192,0.19199649,70535.0,70531.0,0.07085049]
[1771148828377,0.19199649,70535.0,70530.0,0.07117111]
[1771148828579,0.19199649,70535.0,70532.0,0.0002]
[1771148828849,0.07088797,70534.0,70532.0,0.0002]
[1771148828989,0.19199765,70534.0,70532.0,0.0002]
[1771148829198,0.12110968,70534.0,70532.0,0.0002]
[1771148829395,0.19199707,70536.0,70532.0,0.0002]
[1771148829602,0.07088711,70535.0,70532.0,0.0002]
[1771148830188,0.12110968,70536.0,70532.0,0.0002]
[1771148830391,0.19199603,70536.0,70532.0,0.0002]
[1771148830641,0.07088635,70536.0,70532.0,0.0002]
[1771148830868,0.12110968,70535.0,70532.0,0.0002]
[1771148831148,0.12110968,70542.0,70533.0,0.07088853]
[1771148831479,0.07088405,70538.0,70533.0,0.07088853]
[1771148831752,0.07087794,70544.0,70533.0,0.30810158]
[1771148831978,0.07087912,70543.0,70538.0,0.0708835]
[1771148832189,0.07087842,70545.0,70539.0,0.07088225]
[1771148832391,0.0005279,70552.0,70538.0,0.02455038]
[1771148832702,0.07087425,70549.0,70543.0,0.07087859]
[1771148832901,0.0005279,70552.0,70541.0,0.02455038]
[1771148833101,0.07087095,70551.0,70546.0,0.07087533]
[1771148834117,0.07087194,70550.0,70545.0,0.07087651]
[1771148834319,0.07087552,70547.0,70541.0,0.07088044]
[1771148834494,0.07087552,70547.0,70542.0,0.07087964]
[1771148835823,0.0004,70546.0,70542.0,0.07087964]
[1771148836225,0.0712758,70546.0,70541.0,0.07088044]
[1771148836847,0.0004,70546.0,70542.0,0.07087953]
[1771148839187,0.07127574,70546.0,70541.0,0.07088044]
[1771148839395,0.0004,70546.0,70541.0,0.07088044]
[1771148839606,0.0004,70546.0,70540.0,0.09379092]
[1771148839607,0.07127614,70546.0,70540.0,0.09379215]
[1771148839782,0.07087975,70543.0,70537.0,6.5e-05]
[1771148839982,0.05441226,70543.0,70537.0,0.07094943]
[1771148840402,0.07088005,70542.0,70537.0,0.07094943]
[1771148840971,0.05441226,70543.0,70537.0,0.07094943]
[1771148841171,0.05441226,70543.0,70538.0,0.07088377]
[1771148841627,0.07087721,70545.0,70540.0,0.07088107]
[1771148843266,0.07087806,70544.0,70539.0,0.07088103]
[1771148846905,0.11576816,70544.0,70537.0,6.5e-05]
[1771148847043,0.07088176,70541.0,70537.0,6.5e-05]
[1771148847905,0.07088377,70538.0,70533.0,0.07088852]
[1771148848048,0.07088528,70537.0,70532.0,0.0710895]
[1771148848252,0.07088528,70537.0,70533.0,0.07088877]
[1771148848493,0.07088377,70538.0,70533.0,0.07088877]
[1771148848722,0.07088498,70537.0,70532.0,0.0710895]
[1771148849054,0.07088377,70538.0,70533.0,0.07088866]
[1771148850351,0.07079253,70538.0,70533.0,0.07088866]
[1771148850911,0.11576816,70541.0,70535.0,0.07088592]
[1771148851107,0.07088217,70540.0,70535.0,0.07088592]
[1771148851926,0.07088312,70539.0,70534.0,0.0708861]
[1771148852111,0.07088217,70540.0,70535.0,0.0708865]
[1771148853069,0.07088249,70541.0,70535.0,0.0708865]
[1771148853278,0.07088249,70541.0,70536.0,0.07088566]
[1771148853400,0.18665065,70541.0,70536.0,0.07088566]
[1771148854062,0.2835152,70543.0,70532.0,0.28375899]
[1771148854063,0.11576816,70543.0,70532.0,0.28375899]
[1771148854230,0.07088422,70538.0,70533.0,0.07088852]
[1771148854413,0.18665238,70538.0,70533.0,0.07088852]
[1771148854609,0.07088422,70538.0,70533.0,0.07088852]
[1771148854831,0.07088501,70537.0,70532.0,0.0002]
[1771148855256,0.07088501,70537.0,70532.0,0.07108926]
[1771148855733,0.07088312,70539.0,70534.0,0.07088745]
[1771148855942,0.0708839,70538.0,70533.0,0.07088855]
[1771148856363,0.07088529,70537.0,70532.0,0.07108805]
[1771148856595,0.07088852,70534.0,70532.0,0.0002]
[1771148856928,0.07088583,70536.0,70533.0,0.0002]
[1771148858149,0.07088583,70536.0,70533.0,0.00016]
[1771148859490,0.07088708,70535.0,70533.0,0.00016]
[1771148859896,0.07088779,70534.0,70533.0,0.00016]
[1771148860433,0.07088708,70535.0,70533.0,0.00016]
[1771148861126,0.07088708,70535.0,70527.0,0.29623205]
[1771148861321,0.07093032,70535.0,70530.0,0.07089144]
[1771148861704,0.07088793,70534.0,70529.0,0.07089257]
[1771148862025,0.07093032,70535.0,70530.0,0.07089176]
[1771148862578,0.02304508,70547.0,70530.0,0.02371583]
[1771148862784,0.07088146,70541.0,70535.0,0.07088635]
[1771148862989,0.07088442,70538.0,70532.0,0.0708898]
[1771148863544,0.07088442,70538.0,70533.0,0.07088874]
[1771148863778,0.07088279,70539.0,70533.0,0.07088874]
[1771148864431,0.07088279,70539.0,70534.0,0.07088779]
[1771148866150,0.07088279,70539.0,70533.0,0.07088874]
[1771148867805,0.07088385,70538.0,70532.0,0.07088819]
[1771148868214,0.07088385,70538.0,70533.0,0.07088825]
[1771148868416,0.07088478,70537.0,70532.0,0.07088819]
[1771148868637,0.07088828,70534.0,70529.0,0.07109271]
[1771148870329,0.07088828,70534.0,70528.0,0.03382687]
[1771148870550,0.07088828,70534.0,70529.0,0.07089215]
[1771148871072,0.07088706,70535.0,70530.0,0.0708917]
[1771148871431,0.07088782,70534.0,70529.0,0.07089215]
[1771148872330,0.07088782,70534.0,70529.0,0.07109215]
[1771148873180,0.07088706,70535.0,70530.0,0.07089166]
[1771148874322,0.07088784,70534.0,70529.0,0.07109215]
[1771148874726,0.07088784,70534.0,70530.0,0.07089179]
[1771148876519,0.07088706,70535.0,70530.0,0.07089179]
[1771148879427,0.07089054,70532.0,70529.0,0.0002]
[1771148879647,0.02267152,70531.0,70526.0,0.07109549]
[1771148879824,0.11575436,70531.0,70526.0,0.0002]
[1771148880026,0.07089349,70529.0,70526.0,0.0002]
[1771148880233,0.07089251,70531.0,70526.0,0.0002]
[1771148880507,0.07089251,70531.0,70525.0,0.02311735]
[1771148880674,0.07089251,70531.0,70526.0,0.07089533]
[1771148881666,0.0708914,70532.0,70527.0,0.07089481]
[1771148881861,0.07089118,70531.0,70526.0,0.09427948]
[1771148885655,0.07089145,70531.0,70526.0,0.09427987]
[1771148886292,0.07089145,70531.0,70526.0,0.07089572]
[1771148886505,0.18664581,70531.0,70526.0,0.07089572]
[1771148886717,0.07089145,70531.0,70526.0,0.07089572]
[1771148887390,0.07089145,70531.0,70526.0,0.07109572]
[1771148888312,0.07089145,70531.0,70526.0,0.07105572]
[1771148889586,0.07089145,70531.0,70525.0,0.04241879]
[1771148889781,0.07089145,70531.0,70526.0,0.07089572]
[1771148891124,0.07089224,70530.0,70525.0,0.07089634]
[1771148892031,0.07089112,70531.0,70526.0,0.0708958]
[1771148896239,0.07089112,70531.0,70526.0,0.07240694]
[1771148896819,0.0724032,70530.0,70522.0,0.0002]
[1771148897019,0.00151125,70530.0,70522.0,0.0002]
[1771148897224,0.12686746,70532.0,70522.0,0.0710995]
[1771148897225,0.07089522,70527.0,70522.0,0.0710995]
[1771148897812,0.07089522,70527.0,70523.0,0.02374891]
[1771148898014,0.07089409,70528.0,70523.0,0.07089845]
[1771148898217,0.07089409,70528.0,70524.0,0.02374891]
[1771148898420,0.07089409,70528.0,70523.0,0.07089845]
[1771148898668,0.07089501,70527.0,70522.0,0.0710995]
[1771148898979,0.07089501,70527.0,70522.0,0.09484841]
[1771148899186,0.07089409,70528.0,70523.0,0.07089832]
[1771148899485,0.07089117,70531.0,70526.0,0.07089529]
[1771148899769,0.00151125,70530.0,70526.0,0.07089529]
[1771148900481,0.07240331,70530.0,70525.0,0.07089529]
[1771148900930,0.07240331,70530.0,70526.0,0.07089578]
[1771148901294,0.07240331,70530.0,70525.0,0.07089529]
[1771148903365,0.07244331,70530.0,70526.0,0.07089578]
[1771148904075,0.00155125,70530.0,70527.0,0.07089474]
[1771148904209,4e-05,70530.0,70528.0,0.09464245]
[1771148904409,4e-05,70530.0,70528.0,0.02374891]
[1771148904618,4e-05,70530.0,70527.0,0.07089308]
[1771148908966,4e-05,70530.0,70526.0,0.07089418]
[1771148909330,4e-05,70530.0,70527.0,0.07089478]
[1771148909536,4e-05,70530.0,70526.0,0.07089418]
[1771148913012,0.07089386,70528.0,70524.0,0.0002]
[1771148915108,0.07089558,70527.0,70524.0,0.0002]
[1771148915310,0.07089386,70528.0,70524.0,0.0002]
[1771148916838,0.0708949,70527.0,70524.0,0.0002]
[1771148917040,0.07089386,70528.0,70524.0,0.0002]
[1771148917584,0.02444168,70528.0,70520.0,0.0003279]
[1771148917858,0.0708978,70525.0,70520.0,0.0003279]
[1771148918061,0.0708978,70525.0,70520.0,0.07122951]
[1771148918682,0.0708978,70525.0,70520.0,0.0003279]
[1771148918883,0.07089849,70524.0,70520.0,0.0003279]
[1771148919055,0.0708978,70525.0,70520.0,0.07122944]
[1771148919989,0.07089746,70526.0,70521.0,0.07090069]
[1771148920394,0.07089687,70525.0,70521.0,0.07090069]
[1771148921506,0.07089687,70525.0,70520.0,0.07122944]
[1771148922692,0.07089786,70524.0,70520.0,0.0003279]
[1771148922894,0.07089915,70523.0,70520.0,0.0003279]
[1771148923294,0.07089786,70524.0,70520.0,0.0003279]
[1771148923721,0.07089918,70523.0,70520.0,0.0003279]
[1771148924165,0.07089918,70523.0,70520.0,0.00037114]
[1771148924658,0.0709002,70522.0,70519.0,0.33964]
[1771148926411,0.18671931,70522.0,70519.0,0.33964]
[1771148927099,0.0709002,70522.0,70519.0,0.33964]
[1771148927534,0.0709002,70522.0,70514.0,6e-05]
[1771148927535,0.07090689,70515.0,70514.0,6e-05]
[1771148927698,0.07090689,70515.0,70514.0,4.326e-05]
[1771148927898,0.0709079,70514.0,70510.0,6e-05]